[Event "Titled Tuesday Blitz April 25 Late 2023"]
[White "Tomaszewski, Kacper"]
[Black "Bogaudinov, Rushan"]
[WhiteFideId "1127373"]
[BlackFideId "4129288"]
[WhiteElo "2211"]
[BlackElo "1967"]
[Result "1-0"]
[Round "08"]
[TimeControl "180+2"]
[Date "2023.04.25"]
[WhiteClock "0:00:21"]
[BlackClock "0:00:13"]

1. d4 {[%clk 0:03:00]}  d5 {[%clk 0:02:48]} 2. c4 {[%clk 0:03:00]}  dxc4 {[%clk 0:02:47]} 3. e3 {[%clk 0:02:59]}  Nf6 {[%clk 0:02:47]} 4. Bxc4 {[%clk 0:02:58]}  e6 {[%clk 0:02:48]} 5. Nf3 {[%clk 0:02:57]}  Be7 {[%clk 0:02:47]} 6. O-O {[%clk 0:02:57]}  O-O {[%clk 0:02:47]} 7. Qe2 {[%clk 0:02:57]}  a6 {[%clk 0:02:47]} 8. Rd1 {[%clk 0:02:57]}  b5 {[%clk 0:02:47]} 9. Bb3 {[%clk 0:02:56]}  Bb7 {[%clk 0:02:48]} 10. Bc2 {[%clk 0:02:54]}  Be4 {[%clk 0:02:45]} 11. Bb3 {[%clk 0:02:51]}  Bd5 {[%clk 0:02:42]} 12. Bc2 {[%clk 0:02:50]}  Be4 {[%clk 0:02:42]} 13. Nc3 {[%clk 0:02:46]}  Bxc2 {[%clk 0:02:41]} 14. Qxc2 {[%clk 0:02:47]}  Qc8 {[%clk 0:02:32]} 15. Ne4 {[%clk 0:02:40]}  Nbd7 {[%clk 0:02:25]} 16. Nc5 {[%clk 0:02:30]}  Bd6 {[%clk 0:02:10]} 17. e4 {[%clk 0:02:18]}  e5 {[%clk 0:02:01]} 18. Nxd7 {[%clk 0:02:09]}  Nxd7 {[%clk 0:02:00]} 19. Be3 {[%clk 0:01:50]}  Re8 {[%clk 0:01:52]} 20. Rac1 {[%clk 0:01:42]}  Qb7 {[%clk 0:01:47]} 21. d5 {[%clk 0:01:27]}  h6 {[%clk 0:01:42]} 22. Nh4 {[%clk 0:01:25]}  Nf6 {[%clk 0:01:24]} 23. f3 {[%clk 0:01:13]}  Rac8 {[%clk 0:01:20]} 24. Nf5 {[%clk 0:01:12]}  Bf8 {[%clk 0:01:19]} 25. Qc6 {[%clk 0:01:09]}  Qxc6 {[%clk 0:01:06]} 26. Rxc6 {[%clk 0:01:10]}  Kh7 {[%clk 0:00:45]} 27. Rxa6 {[%clk 0:01:02]}  g6 {[%clk 0:00:44]} 28. Rxf6 {[%clk 0:00:58]}  gxf5 {[%clk 0:00:44]} 29. Rxf7+ {[%clk 0:00:58]}  Kg6 {[%clk 0:00:43]} 30. Rxf5 {[%clk 0:00:58]}  Bd6 {[%clk 0:00:41]} 31. Rc1 {[%clk 0:00:52]}  b4 {[%clk 0:00:38]} 32. Bc5 {[%clk 0:00:50]}  Ra8 {[%clk 0:00:36]} 33. Bxd6 {[%clk 0:00:50]}  cxd6 {[%clk 0:00:37]} 34. Rc6 {[%clk 0:00:40]}  Red8 {[%clk 0:00:35]} 35. Rb6 {[%clk 0:00:38]}  Rab8 {[%clk 0:00:27]} 36. Rxb8 {[%clk 0:00:29]}  Rxb8 {[%clk 0:00:27]} 37. a3 {[%clk 0:00:30]}  bxa3 {[%clk 0:00:26]} 38. bxa3 {[%clk 0:00:31]}  Ra8 {[%clk 0:00:26]} 39. Kf2 {[%clk 0:00:30]}  Rxa3 {[%clk 0:00:25]} 40. Kg3 {[%clk 0:00:31]}  Ra8 {[%clk 0:00:24]} 41. h4 {[%clk 0:00:29]}  h5 {[%clk 0:00:24]} 42. Rg5+ {[%clk 0:00:29]}  Kh6 {[%clk 0:00:22]} 43. Kh3 {[%clk 0:00:26]}  Rf8 {[%clk 0:00:20]} 44. Rf5 {[%clk 0:00:23]}  Rxf5 {[%clk 0:00:16]} 45. exf5 {[%clk 0:00:23]}  Kg7 {[%clk 0:00:16]} 46. g4 {[%clk 0:00:24]}  Kf6 {[%clk 0:00:16]} 47. Kg3 {[%clk 0:00:23]}  hxg4 {[%clk 0:00:16]} 48. Kxg4 {[%clk 0:00:20]}  Kf7 {[%clk 0:00:15]} 49. Kg5 {[%clk 0:00:20]}  Kg7 {[%clk 0:00:15]} 50. h5 {[%clk 0:00:21]}  Kh7 {[%clk 0:00:15]} 51. f6 {[%clk 0:00:21]}  Kg8 {[%clk 0:00:15]} 52. Kg6 {[%clk 0:00:21]}  Kf8 {[%clk 0:00:14]} 53. h6 {[%clk 0:00:21]}  Kg8 {[%clk 0:00:13]} 54. h7+ {[%clk 0:00:21]} 1-0


[Site "https://www.chess.com"]

[Event "Titled Tuesday Blitz April 25 Late 2023"]
[White "Adewumi, Tanitoluwa"]
[Black "Prieto Aranguren, Alain"]
[WhiteFideId "30966396"]
[BlackFideId "2268906"]
[WhiteElo "2283"]
[BlackElo "2209"]
[Result "1-0"]
[Round "08"]
[TimeControl "180+2"]
[Date "2023.04.25"]
[WhiteClock "0:00:27"]
[BlackClock "0:00:07"]

1. e4 {[%clk 0:03:00]}  c6 {[%clk 0:02:52]} 2. d4 {[%clk 0:03:00]}  d5 {[%clk 0:02:52]} 3. exd5 {[%clk 0:02:45]}  cxd5 {[%clk 0:02:52]} 4. Bd3 {[%clk 0:02:46]}  Nc6 {[%clk 0:02:52]} 5. c3 {[%clk 0:02:46]}  Qc7 {[%clk 0:02:52]} 6. Ne2 {[%clk 0:02:43]}  Bg4 {[%clk 0:02:51]} 7. O-O {[%clk 0:02:43]}  e6 {[%clk 0:02:51]} 8. Qe1 {[%clk 0:02:40]}  Nf6 {[%clk 0:02:51]} 9. Bg5 {[%clk 0:02:38]}  Bxe2 {[%clk 0:02:41]} 10. Qxe2 {[%clk 0:02:38]}  Bd6 {[%clk 0:02:41]} 11. g3 {[%clk 0:02:38]}  O-O-O {[%clk 0:02:36]} 12. Nd2 {[%clk 0:02:38]}  h6 {[%clk 0:02:34]} 13. Be3 {[%clk 0:02:35]}  g5 {[%clk 0:02:22]} 14. f4 {[%clk 0:02:22]}  g4 {[%clk 0:02:01]} 15. b4 {[%clk 0:01:52]}  h5 {[%clk 0:01:51]} 16. b5 {[%clk 0:01:53]}  Na5 {[%clk 0:01:47]} 17. c4 {[%clk 0:01:47]}  dxc4 {[%clk 0:01:43]} 18. Nxc4 {[%clk 0:01:48]}  Nxc4 {[%clk 0:01:42]} 19. Bxc4 {[%clk 0:01:49]}  Kb8 {[%clk 0:01:39]} 20. Rac1 {[%clk 0:01:38]}  Qb6 {[%clk 0:01:32]} 21. f5 {[%clk 0:01:25]}  Nd5 {[%clk 0:01:25]} 22. fxe6 {[%clk 0:01:23]}  fxe6 {[%clk 0:01:25]} 23. Bg5 {[%clk 0:01:19]}  Qxd4+ {[%clk 0:01:18]} 24. Kh1 {[%clk 0:01:19]}  Nc3 {[%clk 0:01:13]} 25. Qd3 {[%clk 0:00:53]}  Qxd3 {[%clk 0:01:07]} 26. Bxd3 {[%clk 0:00:54]}  Rc8 {[%clk 0:01:04]} 27. Bf6 {[%clk 0:00:52]}  Nd5 {[%clk 0:00:29]} 28. Bxh8 {[%clk 0:00:50]}  Rxh8 {[%clk 0:00:30]} 29. Be4 {[%clk 0:00:32]}  h4 {[%clk 0:00:30]} 30. Bxd5 {[%clk 0:00:31]}  exd5 {[%clk 0:00:26]} 31. gxh4 {[%clk 0:00:32]}  a6 {[%clk 0:00:19]} 32. b6 {[%clk 0:00:28]}  Rxh4 {[%clk 0:00:11]} 33. Rf6 {[%clk 0:00:27]}  Rxh2+ {[%clk 0:00:07]} 34. Kg1 {[%clk 0:00:27]} 1-0


[Site "https://www.chess.com"]

[Event "Titled Tuesday Blitz April 25 Late 2023"]
[White "Perske, Thore"]
[Black "Hoffmann, Asa"]
[WhiteFideId "12902195"]
[BlackFideId "2001470"]
[WhiteElo "2336"]
[BlackElo "2117"]
[Result "0-1"]
[Round "08"]
[TimeControl "180+2"]
[Date "2023.04.25"]
[WhiteClock "0:00:05"]
[BlackClock "0:00:35"]

1. d4 {[%clk 0:03:00]}  Nf6 {[%clk 0:02:57]} 2. g3 {[%clk 0:03:01]}  d6 {[%clk 0:02:56]} 3. Bg2 {[%clk 0:03:01]}  c6 {[%clk 0:02:56]} 4. e4 {[%clk 0:03:01]}  Nbd7 {[%clk 0:02:55]} 5. Ne2 {[%clk 0:03:01]}  e5 {[%clk 0:02:55]} 6. a4 {[%clk 0:03:00]}  Be7 {[%clk 0:02:54]} 7. Nbc3 {[%clk 0:03:00]}  O-O {[%clk 0:02:53]} 8. O-O {[%clk 0:03:01]}  Re8 {[%clk 0:02:53]} 9. h3 {[%clk 0:03:00]}  Bf8 {[%clk 0:02:53]} 10. f4 {[%clk 0:03:00]}  exd4 {[%clk 0:02:51]} 11. Nxd4 {[%clk 0:03:01]}  Nc5 {[%clk 0:02:50]} 12. Re1 {[%clk 0:03:01]}  a5 {[%clk 0:02:48]} 13. g4 {[%clk 0:02:58]}  g6 {[%clk 0:02:43]} 14. Qf3 {[%clk 0:02:43]}  Bg7 {[%clk 0:02:41]} 15. Nb3 {[%clk 0:01:26]}  Nxb3 {[%clk 0:02:34]} 16. cxb3 {[%clk 0:01:27]}  Qb6+ {[%clk 0:02:31]} 17. Kh2 {[%clk 0:01:28]}  Qxb3 {[%clk 0:02:30]} 18. e5 {[%clk 0:01:28]}  Nd5 {[%clk 0:02:21]} 19. Nxd5 {[%clk 0:01:23]}  Qxf3 {[%clk 0:02:16]} 20. Bxf3 {[%clk 0:01:24]}  cxd5 {[%clk 0:02:16]} 21. Bxd5 {[%clk 0:01:24]}  dxe5 {[%clk 0:02:16]} 22. fxe5 {[%clk 0:01:16]}  Rxe5 {[%clk 0:01:58]} 23. Rxe5 {[%clk 0:01:15]}  Bxe5+ {[%clk 0:01:57]} 24. Kg2 {[%clk 0:01:16]}  Be6 {[%clk 0:01:50]} 25. Bxb7 {[%clk 0:01:07]}  Rb8 {[%clk 0:01:49]} 26. Bf3 {[%clk 0:01:01]}  Bxb2 {[%clk 0:01:43]} 27. Rb1 {[%clk 0:00:57]}  Be5 {[%clk 0:01:42]} 28. Rxb8+ {[%clk 0:00:58]}  Bxb8 {[%clk 0:01:42]} 29. Bd2 {[%clk 0:00:59]}  Bc7 {[%clk 0:01:42]} 30. Bc6 {[%clk 0:00:57]}  f5 {[%clk 0:01:40]} 31. Kf3 {[%clk 0:00:55]}  fxg4+ {[%clk 0:01:39]} 32. hxg4 {[%clk 0:00:55]}  h5 {[%clk 0:01:39]} 33. gxh5 {[%clk 0:00:53]}  gxh5 {[%clk 0:01:39]} 34. Be8 {[%clk 0:00:33]}  h4 {[%clk 0:01:34]} 35. Bg5 {[%clk 0:00:18]}  h3 {[%clk 0:01:33]} 36. Bc6 {[%clk 0:00:19]}  Kf7 {[%clk 0:01:27]} 37. Bh4 {[%clk 0:00:15]}  Kg6 {[%clk 0:01:21]} 38. Bg3 {[%clk 0:00:15]}  Bxg3 {[%clk 0:00:48]} 39. Kxg3 {[%clk 0:00:16]}  Kf6 {[%clk 0:00:48]} 40. Kf4 {[%clk 0:00:06]}  Bc4 {[%clk 0:00:41]} 41. Kg3 {[%clk 0:00:04]}  Bf1 {[%clk 0:00:40]} 42. Kh2 {[%clk 0:00:04]}  Ke5 {[%clk 0:00:37]} 43. Kg3 {[%clk 0:00:05]}  Kd4 {[%clk 0:00:36]} 44. Bd7 {[%clk 0:00:03]}  Kc5 {[%clk 0:00:35]} 45. Bxh3 {[%clk 0:00:02]}  Bxh3 {[%clk 0:00:34]} 46. Kxh3 {[%clk 0:00:03]}  Kb4 {[%clk 0:00:34]} 47. Kg3 {[%clk 0:00:04]}  Kxa4 {[%clk 0:00:35]} 48. Kf3 {[%clk 0:00:05]}  Kb3 {[%clk 0:00:35]} 0-1


[Site "https://www.chess.com"]

[Event "Titled Tuesday Blitz April 25 Late 2023"]
[White "Harish, Neeraj"]
[Black "Mikhalsky, Vladimir"]
[WhiteFideId "30958130"]
[BlackFideId "14144352"]
[WhiteElo "1965"]
[BlackElo "2236"]
[Result "0-1"]
[Round "08"]
[TimeControl "180+2"]
[Date "2023.04.25"]
[WhiteClock "0:00:05"]
[BlackClock "0:00:12"]

1. e4 {[%clk 0:03:00]}  g6 {[%clk 0:02:44]} 2. d4 {[%clk 0:03:00]}  Bg7 {[%clk 0:02:43]} 3. Nc3 {[%clk 0:03:00]}  d6 {[%clk 0:02:40]} 4. f4 {[%clk 0:02:59]}  Nf6 {[%clk 0:02:39]} 5. Nf3 {[%clk 0:02:59]}  O-O {[%clk 0:02:39]} 6. Bd3 {[%clk 0:02:59]}  a6 {[%clk 0:02:36]} 7. O-O {[%clk 0:02:55]}  Bg4 {[%clk 0:02:29]} 8. h3 {[%clk 0:02:52]}  Bxf3 {[%clk 0:02:29]} 9. Qxf3 {[%clk 0:02:53]}  Nc6 {[%clk 0:02:28]} 10. Be3 {[%clk 0:02:41]}  e5 {[%clk 0:02:26]} 11. d5 {[%clk 0:02:35]}  Nd4 {[%clk 0:02:25]} 12. Bxd4 {[%clk 0:02:34]}  exd4 {[%clk 0:02:25]} 13. Ne2 {[%clk 0:02:35]}  c5 {[%clk 0:02:24]} 14. c4 {[%clk 0:02:23]}  dxc3 {[%clk 0:02:20]} 15. bxc3 {[%clk 0:02:23]}  Re8 {[%clk 0:02:18]} 16. Rab1 {[%clk 0:02:20]}  b5 {[%clk 0:02:15]} 17. Ng3 {[%clk 0:02:12]}  c4 {[%clk 0:02:07]} 18. Bc2 {[%clk 0:02:10]}  Nd7 {[%clk 0:02:01]} 19. a4 {[%clk 0:01:57]}  Qa5 {[%clk 0:02:00]} 20. axb5 {[%clk 0:01:55]}  axb5 {[%clk 0:02:00]} 21. h4 {[%clk 0:01:52]}  Bxc3 {[%clk 0:01:49]} 22. h5 {[%clk 0:01:52]}  b4 {[%clk 0:01:45]} 23. hxg6 {[%clk 0:01:51]}  hxg6 {[%clk 0:01:44]} 24. Qg4 {[%clk 0:01:48]}  Qa7+ {[%clk 0:01:40]} 25. Kh1 {[%clk 0:01:48]}  Nf6 {[%clk 0:01:30]} 26. Qg5 {[%clk 0:01:44]}  b3 {[%clk 0:01:18]} 27. Bxb3 {[%clk 0:01:29]}  cxb3 {[%clk 0:01:17]} 28. Rxb3 {[%clk 0:01:30]}  Qe3 {[%clk 0:01:09]} 29. Qxf6 {[%clk 0:01:19]}  Qxg3 {[%clk 0:01:03]} 30. Rxc3 {[%clk 0:01:16]}  Qg4 {[%clk 0:00:44]} 31. Rh3 {[%clk 0:01:14]}  Qxh3+ {[%clk 0:00:40]} 32. gxh3 {[%clk 0:01:15]}  Rxe4 {[%clk 0:00:39]} 33. Qxd6 {[%clk 0:01:15]}  Ra2 {[%clk 0:00:39]} 34. Qf6 {[%clk 0:00:37]}  Ree2 {[%clk 0:00:37]} 35. Qg5 {[%clk 0:00:37]}  Kg7 {[%clk 0:00:32]} 36. f5 {[%clk 0:00:35]}  Rh2+ {[%clk 0:00:20]} 37. Kg1 {[%clk 0:00:33]}  Rxh3 {[%clk 0:00:20]} 38. f6+ {[%clk 0:00:29]}  Kh7 {[%clk 0:00:20]} 39. d6 {[%clk 0:00:26]}  Raa3 {[%clk 0:00:19]} 40. Kg2 {[%clk 0:00:21]}  Rh5 {[%clk 0:00:17]} 41. Qg4 {[%clk 0:00:17]}  Ra2+ {[%clk 0:00:17]} 42. Rf2 {[%clk 0:00:17]}  Raa5 {[%clk 0:00:16]} 43. d7 {[%clk 0:00:14]}  Rag5 {[%clk 0:00:16]} 44. d8=Q {[%clk 0:00:11]}  Rxg4+ {[%clk 0:00:16]} 45. Kf3 {[%clk 0:00:10]}  Rgg5 {[%clk 0:00:13]} 46. Qe7 {[%clk 0:00:10]}  Rf5+ {[%clk 0:00:12]} 47. Ke3 {[%clk 0:00:09]}  Re5+ {[%clk 0:00:12]} 48. Qxe5 {[%clk 0:00:08]}  Rxe5+ {[%clk 0:00:12]} 49. Kd4 {[%clk 0:00:09]}  Re6 {[%clk 0:00:12]} 50. Kd5 {[%clk 0:00:08]}  Ra6 {[%clk 0:00:11]} 51. Ke5 {[%clk 0:00:08]}  g5 {[%clk 0:00:11]} 52. Kf5 {[%clk 0:00:07]}  Ra5+ {[%clk 0:00:11]} 53. Kg4 {[%clk 0:00:07]}  Kg6 {[%clk 0:00:12]} 54. Rb2 {[%clk 0:00:06]}  Ra4+ {[%clk 0:00:12]} 55. Kg3 {[%clk 0:00:05]}  Rf4 {[%clk 0:00:12]} 56. Rb5 {[%clk 0:00:04]}  Rxf6 {[%clk 0:00:13]} 57. Kg4 {[%clk 0:00:04]}  Rf4+ {[%clk 0:00:13]} 58. Kg3 {[%clk 0:00:05]}  f6 {[%clk 0:00:13]} 59. Ra5 {[%clk 0:00:04]}  Rb4 {[%clk 0:00:13]} 60. Rc5 {[%clk 0:00:04]}  f5 {[%clk 0:00:13]} 61. Rc6+ {[%clk 0:00:01]}  Kh5 {[%clk 0:00:13]} 62. Rc5 {[%clk 0:00:02]}  Rb3+ {[%clk 0:00:13]} 63. Kg2 {[%clk 0:00:02]}  Kg4 {[%clk 0:00:13]} 64. Rc8 {[%clk 0:00:03]}  f4 {[%clk 0:00:13]} 65. Rc7 {[%clk 0:00:03]}  Rb2+ {[%clk 0:00:14]} 66. Kg1 {[%clk 0:00:03]}  Kg3 {[%clk 0:00:14]} 67. Rc3+ {[%clk 0:00:03]}  f3 {[%clk 0:00:14]} 68. Rc1 {[%clk 0:00:04]}  g4 {[%clk 0:00:14]} 69. Rd1 {[%clk 0:00:03]}  Rh2 {[%clk 0:00:14]} 70. Rc1 {[%clk 0:00:03]}  f2+ {[%clk 0:00:14]} 71. Kf1 {[%clk 0:00:04]}  Rh1+ {[%clk 0:00:13]} 72. Ke2 {[%clk 0:00:05]}  Rxc1 {[%clk 0:00:12]} 0-1


[Site "https://www.chess.com"]

[Event "Titled Tuesday Blitz April 25 Late 2023"]
[White "Womacka, Mathias"]
[Black "Smith, Garrett L"]
[WhiteFideId "4611390"]
[BlackFideId "2024829"]
[WhiteElo "2377"]
[BlackElo "2047"]
[Result "1-0"]
[Round "08"]
[TimeControl "180+2"]
[Date "2023.04.25"]
[WhiteClock "0:00:24"]
[BlackClock "0:00:01"]

1. e4 {[%clk 0:03:00]}  c5 {[%clk 0:03:00]} 2. Nf3 {[%clk 0:03:00]}  Nc6 {[%clk 0:03:00]} 3. d4 {[%clk 0:03:00]}  cxd4 {[%clk 0:03:01]} 4. Nxd4 {[%clk 0:03:00]}  e5 {[%clk 0:03:01]} 5. Nb5 {[%clk 0:02:59]}  d6 {[%clk 0:03:01]} 6. c4 {[%clk 0:02:58]}  Be7 {[%clk 0:03:01]} 7. N1c3 {[%clk 0:02:57]}  a6 {[%clk 0:03:01]} 8. Na3 {[%clk 0:02:57]}  f5 {[%clk 0:02:56]} 9. exf5 {[%clk 0:02:56]}  Bxf5 {[%clk 0:02:56]} 10. Bd3 {[%clk 0:02:55]}  Be6 {[%clk 0:02:57]} 11. O-O {[%clk 0:02:55]}  Nf6 {[%clk 0:02:58]} 12. Nc2 {[%clk 0:02:55]}  O-O {[%clk 0:02:57]} 13. Ne3 {[%clk 0:02:54]}  Rc8 {[%clk 0:02:56]} 14. Ne4 {[%clk 0:02:53]}  Nd4 {[%clk 0:02:43]} 15. b3 {[%clk 0:02:47]}  b5 {[%clk 0:02:28]} 16. Nxf6+ {[%clk 0:02:37]}  gxf6 {[%clk 0:02:20]} 17. Be4 {[%clk 0:02:36]}  bxc4 {[%clk 0:02:15]} 18. bxc4 {[%clk 0:02:32]}  f5 {[%clk 0:02:11]} 19. Bd5 {[%clk 0:02:31]}  Bg5 {[%clk 0:02:04]} 20. Bxe6+ {[%clk 0:02:14]}  Nxe6 {[%clk 0:02:05]} 21. Ba3 {[%clk 0:02:13]}  Nd4 {[%clk 0:01:53]} 22. Qd3 {[%clk 0:02:06]}  Qf6 {[%clk 0:01:42]} 23. Nd5 {[%clk 0:01:58]}  Qg6 {[%clk 0:01:42]} 24. f4 {[%clk 0:01:58]}  Bd8 {[%clk 0:01:39]} 25. Rae1 {[%clk 0:01:47]}  Re8 {[%clk 0:01:33]} 26. Kh1 {[%clk 0:01:40]}  Ba5 {[%clk 0:01:33]} 27. Re3 {[%clk 0:01:38]}  Kh8 {[%clk 0:01:27]} 28. Bb2 {[%clk 0:01:28]}  Qg7 {[%clk 0:01:17]} 29. Rg3 {[%clk 0:01:17]}  Qa7 {[%clk 0:01:02]} 30. Qa3 {[%clk 0:01:01]}  Ne2 {[%clk 0:00:21]} 31. Qxa5 {[%clk 0:00:53]}  Nxg3+ {[%clk 0:00:20]} 32. hxg3 {[%clk 0:00:53]}  Rxc4 {[%clk 0:00:13]} 33. fxe5 {[%clk 0:00:45]}  dxe5 {[%clk 0:00:12]} 34. Nb6 {[%clk 0:00:45]}  Re4 {[%clk 0:00:05]} 35. Rxf5 {[%clk 0:00:39]}  Re6 {[%clk 0:00:05]} 36. Rh5 {[%clk 0:00:30]}  Qxb6 {[%clk 0:00:02]} 37. Bxe5+ {[%clk 0:00:25]}  Kg8 {[%clk 0:00:01]} 38. Qd5 {[%clk 0:00:24]} 1-0


[Site "https://www.chess.com"]

[Event "Titled Tuesday Blitz April 25 Late 2023"]
[White "Stanisz, Patryk"]
[Black "Estrada Nieto, Julian"]
[WhiteFideId "1123106"]
[BlackFideId "5101018"]
[WhiteElo "2069"]
[BlackElo "2161"]
[Result "0-1"]
[Round "08"]
[TimeControl "180+2"]
[Date "2023.04.25"]
[WhiteClock "0:01:11"]
[BlackClock "0:01:29"]

1. d4 {[%clk 0:03:00]}  d5 {[%clk 0:02:58]} 2. c4 {[%clk 0:03:00]}  dxc4 {[%clk 0:02:59]} 3. e3 {[%clk 0:03:00]}  Nf6 {[%clk 0:03:00]} 4. Bxc4 {[%clk 0:03:00]}  e6 {[%clk 0:03:00]} 5. Nf3 {[%clk 0:03:01]}  c5 {[%clk 0:03:01]} 6. O-O {[%clk 0:03:01]}  a6 {[%clk 0:03:01]} 7. Qe2 {[%clk 0:03:00]}  Nc6 {[%clk 0:02:59]} 8. dxc5 {[%clk 0:02:55]}  Bxc5 {[%clk 0:02:58]} 9. Rd1 {[%clk 0:02:56]}  Qc7 {[%clk 0:02:58]} 10. Nc3 {[%clk 0:02:55]}  O-O {[%clk 0:02:57]} 11. e4 {[%clk 0:02:48]}  Ng4 {[%clk 0:02:56]} 12. h3 {[%clk 0:02:37]}  Nxf2 {[%clk 0:02:45]} 13. Be3 {[%clk 0:01:53]}  Bxe3 {[%clk 0:02:40]} 14. Qxe3 {[%clk 0:01:54]}  Nxd1 {[%clk 0:02:39]} 15. Rxd1 {[%clk 0:01:53]}  Rd8 {[%clk 0:02:29]} 16. Rf1 {[%clk 0:01:53]}  b5 {[%clk 0:02:20]} 17. Bd3 {[%clk 0:01:52]}  Ne5 {[%clk 0:02:20]} 18. Bb1 {[%clk 0:01:47]}  Nxf3+ {[%clk 0:02:09]} 19. Qxf3 {[%clk 0:01:46]}  Bb7 {[%clk 0:02:03]} 20. Qh5 {[%clk 0:01:43]}  g6 {[%clk 0:01:56]} 21. Qg5 {[%clk 0:01:29]}  Rac8 {[%clk 0:01:36]} 22. h4 {[%clk 0:01:29]}  Qc5+ {[%clk 0:01:35]} 23. Kh2 {[%clk 0:01:20]}  Qxg5 {[%clk 0:01:34]} 24. hxg5 {[%clk 0:01:21]}  Rd2 {[%clk 0:01:30]} 25. a3 {[%clk 0:01:11]}  Rxb2 {[%clk 0:01:29]} 0-1


[Site "https://www.chess.com"]

[Event "Titled Tuesday Blitz April 25 Late 2023"]
[White "Florianovitz, Derlei Alex"]
[Black "Gurevich, Dmitry"]
[WhiteFideId "2114178"]
[BlackFideId "2000407"]
[WhiteElo "1953"]
[BlackElo "2506"]
[Result "0-1"]
[Round "08"]
[TimeControl "180+2"]
[Date "2023.04.25"]
[WhiteClock "0:00:09"]
[BlackClock "0:01:53"]

1. e4 {[%clk 0:03:00]}  c5 {[%clk 0:02:59]} 2. Nf3 {[%clk 0:03:00]}  d6 {[%clk 0:02:59]} 3. d4 {[%clk 0:03:00]}  cxd4 {[%clk 0:02:59]} 4. Nxd4 {[%clk 0:03:01]}  Nf6 {[%clk 0:02:59]} 5. Nc3 {[%clk 0:03:02]}  Nc6 {[%clk 0:03:00]} 6. Be3 {[%clk 0:02:58]}  Ng4 {[%clk 0:02:59]} 7. Nxc6 {[%clk 0:02:50]}  bxc6 {[%clk 0:02:57]} 8. Qd2 {[%clk 0:02:45]}  Nxe3 {[%clk 0:02:56]} 9. Qxe3 {[%clk 0:02:46]}  Qb6 {[%clk 0:02:56]} 10. Qxb6 {[%clk 0:02:46]}  axb6 {[%clk 0:02:55]} 11. Bd3 {[%clk 0:02:46]}  g6 {[%clk 0:02:55]} 12. Kd1 {[%clk 0:02:42]}  Bg7 {[%clk 0:02:55]} 13. Kd2 {[%clk 0:02:42]}  b5 {[%clk 0:02:54]} 14. a3 {[%clk 0:02:39]}  Be6 {[%clk 0:02:51]} 15. Rae1 {[%clk 0:02:26]}  O-O {[%clk 0:02:47]} 16. f4 {[%clk 0:02:26]}  Rfb8 {[%clk 0:02:43]} 17. f5 {[%clk 0:02:22]}  Bd7 {[%clk 0:02:34]} 18. fxg6 {[%clk 0:02:09]}  hxg6 {[%clk 0:02:33]} 19. Rhf1 {[%clk 0:01:38]}  Be6 {[%clk 0:02:32]} 20. h3 {[%clk 0:01:28]}  c5 {[%clk 0:02:31]} 21. Nd5 {[%clk 0:01:11]}  Bxb2 {[%clk 0:02:28]} 22. Nxe7+ {[%clk 0:01:06]}  Kg7 {[%clk 0:02:27]} 23. e5 {[%clk 0:00:53]}  Rxa3 {[%clk 0:02:20]} 24. Nc6 {[%clk 0:00:16]}  Rb6 {[%clk 0:02:18]} 25. Nd8 {[%clk 0:00:17]}  Bc3+ {[%clk 0:02:16]} 26. Ke2 {[%clk 0:00:17]}  Bxe1 {[%clk 0:02:12]} 27. Rxe1 {[%clk 0:00:18]}  dxe5 {[%clk 0:02:09]} 28. Nxe6+ {[%clk 0:00:17]}  fxe6 {[%clk 0:02:02]} 29. Rb1 {[%clk 0:00:17]}  Rc3 {[%clk 0:01:55]} 30. Kd2 {[%clk 0:00:16]}  b4 {[%clk 0:01:55]} 31. Re1 {[%clk 0:00:12]}  Rd6 {[%clk 0:01:54]} 32. Kc1 {[%clk 0:00:09]}  Rdxd3 {[%clk 0:01:53]} 0-1


[Site "https://www.chess.com"]

[Event "Titled Tuesday Blitz April 25 Late 2023"]
[White "ArtemDyachuk"]
[Black "Narva, Triin"]
[BlackFideId "4502680"]
[WhiteElo "2440"]
[BlackElo "1944"]
[Result "1-0"]
[Round "08"]
[TimeControl "180+2"]
[Date "2023.04.25"]
[WhiteClock "0:01:07"]
[BlackClock "0:00:03"]

1. Nf3 {[%clk 0:02:58]}  g6 {[%clk 0:02:59]} 2. e4 {[%clk 0:02:47]}  Bg7 {[%clk 0:02:59]} 3. d4 {[%clk 0:02:43]}  c5 {[%clk 0:02:56]} 4. d5 {[%clk 0:02:35]}  d6 {[%clk 0:02:55]} 5. Nc3 {[%clk 0:02:29]}  Nd7 {[%clk 0:02:36]} 6. Nd2 {[%clk 0:02:24]}  a6 {[%clk 0:02:21]} 7. a4 {[%clk 0:02:22]}  Nh6 {[%clk 0:01:36]} 8. Nc4 {[%clk 0:02:18]}  O-O {[%clk 0:01:32]} 9. a5 {[%clk 0:02:16]}  b5 {[%clk 0:01:30]} 10. axb6 {[%clk 0:02:15]}  Nxb6 {[%clk 0:01:30]} 11. Na5 {[%clk 0:02:14]}  Bd7 {[%clk 0:01:21]} 12. h4 {[%clk 0:02:04]}  Nc8 {[%clk 0:01:02]} 13. h5 {[%clk 0:02:03]}  Ng4 {[%clk 0:00:58]} 14. hxg6 {[%clk 0:01:54]}  fxg6 {[%clk 0:00:54]} 15. Nc6 {[%clk 0:01:54]}  Bxc6 {[%clk 0:00:46]} 16. dxc6 {[%clk 0:01:55]}  e6 {[%clk 0:00:46]} 17. Qxg4 {[%clk 0:01:54]}  Bxc3+ {[%clk 0:00:44]} 18. bxc3 {[%clk 0:01:53]}  Qf6 {[%clk 0:00:45]} 19. Qg3 {[%clk 0:01:48]}  d5 {[%clk 0:00:30]} 20. Bg5 {[%clk 0:01:26]}  Qf7 {[%clk 0:00:27]} 21. Bd3 {[%clk 0:01:27]}  c4 {[%clk 0:00:25]} 22. Be2 {[%clk 0:01:24]}  Nd6 {[%clk 0:00:19]} 23. Qxd6 {[%clk 0:01:14]}  Qxf2+ {[%clk 0:00:19]} 24. Kd2 {[%clk 0:01:14]}  Qxg2 {[%clk 0:00:10]} 25. Qxe6+ {[%clk 0:01:13]}  Rf7 {[%clk 0:00:10]} 26. Rag1 {[%clk 0:01:07]}  Qxe4 {[%clk 0:00:03]} 1-0


[Site "https://www.chess.com"]